Cogmind - Beta 14 @@@ ROGUE MODE // 2024.08.10 @ 21:50:34 Player: osman sinnoks Result: Destroyed by S-10 Pest with Light Assault Rifle Performance ------------- Evolutions (0) 0 Regions Visited (2) 400 Robots Destroyed (8) 40 Value Destroyed (92) 92 Prototype IDs (2) 40 Alien Tech Used (0) 0 Bonus (0) 0 TOTAL SCORE: 572 Bonus ------- None Cogmind --------- Core Integrity 0/250 Matter 300/300 Energy 99/100 System Corruption 10% Temperature Cool (0) Movement Core (50) Location -10/Mines Parts ------- > --- POWER (1) -------- (None) > --- PROPULSION (2) --- (None) > --- UTILITY (2) ------ (None) > --- WEAPON (2) ------- (None) > --- INVENTORY (5) ---- Ion Engine Light Ion Engine Heat Sink Seismic Detector Peak State ------------ > --- POWER ------------ Light Ion Engine > --- PROPULSION ------- Aluminum Leg Aluminum Leg > --- UTILITY ---------- Seismic Detector Weapon Shielding > --- WEAPON ----------- EM Pulse Gun Assault Rifle > --- INVENTORY -------- Ion Engine Light Ion Engine Heat Sink Seismic Detector [Rating: 7] Favorites ----------- Power Light Ion Engine Engine Light Ion Engine Propulsion Aluminum Leg Leg Aluminum Leg Utility Seismic Detector Device Seismic Detector Protection Weapon Shielding Weapon Assault Rifle Energy Gun EM Pulse Gun Ballistic Gun Assault Rifle Launcher Rocket Launcher Build | -11 -10 -10 ------- Run | Yrd Mat Min Slots Evolved . | . . . Power . | . . . Propulsion . | . . . Utility . | . . . Weapon . | . . . Parts Attached 8 | 6 1 1 Power 1 | 1 . . Engine 1 | 1 . . Core . | . . . Reactor . | . . . Propulsion 2 | 2 . . Treads . | . . . Leg 2 | 2 . . Wheel . | . . . Hover . | . . . Flight . | . . . Utility 2 | 1 1 . Device 1 | 1 . . Storage . | . . . Processor . | . . . Hackware . | . . . Protection 1 | . 1 . Artifact . | . . . Weapon 3 | 2 . 1 Energy Gun 1 | 1 . . Energy Cannon . | . . . Ballistic Gun 1 | 1 . . Ballistic Cannon . | . . . Launcher 1 | . . 1 Special Weapon . | . . . Impact Weapon . | . . . Slashing Weapon . | . . . Piercing Weapon . | . . . Special Melee Weapon . | . . . Unidentified Prototypes . | . . . Parts Lost 7 | . . 7 Power 1 | . . 1 Propulsion 2 | . . 2 Utility 1 | . . 1 Weapon 3 | . . 3 Highest Loss Streak 7 | . . 7 To Critical Strikes . | . . . Average Slot Usage (%) 86 | . 96 58 Engine 12 | . 14 7 Leg 25 | . 28 16 Device 12 | . 14 7 Protection 10 | . 10 9 Energy Gun 12 | . 14 7 Ballistic Gun 12 | . 14 8 Peak Build Rating 7 | 6 7 7 Average Rating 5 | 4 6 4 On Entrance 4 | . 6 7 Naked Turns 25 | . . 25 Heaviest Build 9 | 8 9 9 Greatest Support 20 | 20 20 20 Greatest Overweight (x) . | . . . Average Overweight (x) . | . . . Largest Inventory Capacity 5 | 5 5 5 Average Capacity 5 | 5 5 5 Most Carried 5 | 2 5 5 Average Carried 3 | . 3 4 Final Capacity 5 | 5 5 5 Final Carried 4 | 1 4 4 Class Distribution -------------------- 100% | Mutant Dominant Class ---------------- Mutant | -10/Materials Mutant | -10/Mines Resources | -11 -10 -10 ----------- Run | Yrd Mat Min Matter Collected 363 | 254 59 50 Remotely . | . . . Salvage Created 133 | 44 84 5 Parts 16 | 9 7 . Haulers Intercepted . | . . . Recyclers Shooed 1 | . 1 . Parts Field Recycled . | . . . Retrieved Matter . | . . . Parts Self-Destructed . | . . . Prevented . | . . . Kills | -11 -10 -10 ------- Run | Yrd Mat Min Combat Hostiles Destroyed 9 | . 4 5 Guns 3 | . 3 . AOE 6 | . 1 5 Classes Destroyed 4 | 1 2 1 Tunneler 4 | 4 . . Swarmer 3 | . 3 . Grunt 1 | . 1 . Assembled 5 | . . 5 Best Kill Streak 5 | 4 2 5 Combat Bots Only 5 | . 2 5 Max Kills in Single Turn 3 | 2 1 3 Gunslinging . | . . . Exploded 3 | . 1 3 Melee . | . . . Uniques/NPCs Destroyed . | . . . Combat | -11 -10 -10 -------- Run | Yrd Mat Min Hostile Shots Fired 75 | . 28 47 Missed 27 | . 9 18 Damage Taken 757 | 22 157 578 Core 255 | . 46 209 Absorbed by Shields . | . . . Redirected to Shielding 35 | . 7 28 Core Remaining (%) 100 | 100 . . Volleys Fired 27 | 4 19 4 Largest 2 | 2 2 1 Hottest 60 | 60 60 33 Shots Fired 50 | 8 38 4 Gun 46 | 8 38 . Cannon . | . . . Launcher 4 | . . 4 Special . | . . . Kinetic 23 | 4 19 . Thermal . | . . . Explosive 4 | . . 4 Electromagnetic 23 | 4 19 . Robot Hit Streak 5 | 5 4 1 Robot Miss Streak 4 | 1 4 3 Penetration Max . | . . . Secondary Targets . | . . . Shots Hit Robots 24 | 6 17 1 Core Hits 19 | 4 6 9 Critical Kills . | . . . Critical Parts Destroyed . | . . . Critical Strikes . | . . . Melee Attacks . | . . . Impact . | . . . Slashing . | . . . Piercing . | . . . Sneak Attacks . | . . . Combat Hostiles . | . . . Follow-up Attacks . | . . . Damage Inflicted 745 | 255 245 245 Guns 309 | 102 207 . Cannons . | . . . Explosions 434 | 153 36 245 Melee . | . . . Ramming 2 | . 2 . Kinetic 179 | 50 129 . Thermal 189 | 153 36 . Explosive 245 | . . 245 Electromagnetic 130 | 52 78 . Impact . | . . . Slashing . | . . . Piercing . | . . . Highest Corruption 10 | . . 10 Average Corruption 10 | . . 10 Corruption Purged . | . . . Corruption Blocked . | . . . Effects 3 | . . 3 Data Loss (major) 1 | . . 1 Alerts 1 | . . 1 Misdirections 1 | . . 1 Overload Shots . | . . . Overflow Damage 14 | . . 14 Projectiles . | . . . Explosions 14 | . . 14 Melee . | . . . Knockbacks . | . . . Impact . | . . . Kinetic . | . . . Secondary . | . . . Self-Inflicted Damage 44 | 23 . 21 Shots 2 | 1 . 1 Rammed . | . . . Targets Rammed 1 | . 1 . Kicked 1 | . 1 . Crushed . | . . . Highest Temperature 12 | 12 12 2 Average Temperature 8 | 12 8 2 Received Heat Transfer 52 | . 12 40 Siege Activations . | . . . Robots Corrupted . | . . . Combat Hostiles . | . . . Parts Fried . | . . . Impact Corruptions . | . . . Robots Melted . | . . . Combat Hostiles . | . . . Parts Melted . | . . . Heat Transferred 250 | 200 50 . Parts Sabotaged . | . . . Parts Stolen . | . . . Parts Stripped . | . . . Power Chain Reactions 3 | 2 1 . Alert | -11 -10 -10 ------- Run | Yrd Mat Min Peak Influence 139 | 20 139 54 Initial 54 | . 13 54 Average 65 | 6 92 30 Maximum Alert Level . | . . . Low Security (%) 100 | 100 100 100 Level 1 . | . . . Level 2 . | . . . Level 3 . | . . . Level 4 . | . . . Level 5 . | . . . High Security . | . . . Max Security . | . . . Squads Dispatched . | . . . Investigation . | . . . Extermination . | . . . Reinforcement . | . . . Assault . | . . . Garrison . | . . . Intercept . | . . . Searches Triggered . | . . . Construction Impeded . | . . . Haulers Reinforced . | . . . Active Scanning Responses . | . . . Cargo Convoy Interrupts . | . . . Stealth | -11 -10 -10 --------- Run | Yrd Mat Min Distress Signals 1 | . 1 . Communications Jammed . | . . . Distress Signals . | . . . Times Spotted 26 | . 8 18 Peak Tracking Total 13 | . 4 13 Tactical Retreats 1 | . 1 . Traps | -11 -10 -10 ------- Run | Yrd Mat Min Traps Triggered . | . . . Indirectly . | . . . Trap Hack Attempts . | . . . Triggered . | . . . Disarmed 3 | . 3 . Reprogrammed . | . . . Reused . | . . . Traps Extracted . | . . . Installed . | . . . Triggered . | . . . Machines | -11 -10 -10 ---------- Run | Yrd Mat Min Machines Disabled . | . . . Max in Single Turn . | . . . Machines Repaired . | . . . Machines Dismantled . | . . . Machines Sabotaged . | . . . Overloaded Fab Kills . | . . . Hacking | -11 -10 -10 --------- Run | Yrd Mat Min Machines Accessed 2 | . 2 . Terminals 2 | . 2 . Fabricators . | . . . Repair Stations . | . . . Recycling Units . | . . . Scanalyzers . | . . . Garrison Access . | . . . Total Hacks 4 | . 4 . Successful 3 | . 3 . Failed 1 | . 1 . Catastrophic . | . . . Database Lockouts . | . . . Manual . | . . . Terminals 4 | . 4 . Fabricators . | . . . Repair Stations . | . . . Recycling Units . | . . . Scanalyzers . | . . . Garrison Access . | . . . Terminal Hacks 3 | . 3 . Prototype ID Bank 1 | . 1 . Locate Traps 1 | . 1 . Disarm Traps 1 | . 1 . Fabricator Hacks . | . . . Repair Station Hacks . | . . . Recycling Unit Hacks . | . . . Scanalyzer . | . . . Garrison Access Hacks . | . . . Unauthorized Hacks . | . . . Terminals . | . . . Fabricators . | . . . Repair Stations . | . . . Recycling Units . | . . . Scanalyzers . | . . . Garrison Access . | . . . Data Cores Recovered . | . . . Used . | . . . Hacking Detections 1 | . 1 . Full Trace Events . | . . . Feedback Events . | . . . Feedback Blocked . | . . . Robot Schematics Acquired . | . . . Robots Built . | . . . Authchips . | . . . Time . | . . . Total Robot Build Rating . | . . . Part Schematics Acquired . | . . . Parts Built . | . . . Authchips . | . . . Time . | . . . Total Part Build Rating . | . . . Parts Repaired . | . . . Time . | . . . Parts Recycled . | . . . Recycled Matter . | . . . Retrieved Matter . | . . . Retrieved Components . | . . . Parts Scanalyzed . | . . . Part Schematics Acquired . | . . . Parts Damaged . | . . . Bothacking | -11 -10 -10 ------------ Run | Yrd Mat Min Used RIF Installer . | . . . Robots Hacked . | . . . Non-combat . | . . . Combat . | . . . Robot Hacks Applied . | . . . Relay Couplers Released . | . . . Fabnet Peak Effective % . | . . . Robots Rewired . | . . . Allies Hacked . | . . . Hacks Repelled . | . . . Allies | -11 -10 -10 -------- Run | Yrd Mat Min Total Allies . | . . . Largest Group . | . . . Highest-Rated Group . | . . . Highest-Rated Ally . | . . . Total Orders . | . . . Ally Attacks . | . . . Total Damage . | . . . Kills . | . . . Allies Corrupted . | . . . Allies Melted . | . . . Intel | -11 -10 -10 ------- Run | Yrd Mat Min Robot Analysis Total . | . . . Derelict Logs Recovered . | . . . Drone Launches . | . . . Drone Recoveries . | . . . Exploration | -11 -10 -10 ------------- Run | Yrd Mat Min Turns Passed 451 | 72 282 97 Spaces Moved 335 | 41 183 111 Core 69 | 2 . 67 Treads . | . . . Legs 266 | 39 183 44 Wheels . | . . . Hover . | . . . Flight . | . . . Fastest Speed 50 | 50 120 50 Average Speed 105 | 116 120 77 Slowest Speed 120 | 120 120 120 Overloaded Moves . | . . . Propulsion Burnouts . | . . . Robots Hopped . | . . . Cave-ins Triggered . | . . . Exploration Rate (%) 25 | 4 35 37 Regions Visited 2 Branch Regions 1 Pre-discovered Areas . | . . . Known Exits Taken . | . . . Unknown Exits Taken 2 | 1 1 . Scrap Searched . | . . . Spaces Dug . | . . . Terrain Destroyed 31 | 7 2 22 Melee . | . . . Projectile . | . . . AOE 31 | 7 2 22 Terrain Rammed . | . . . Walls Destroyed . | . . . Machines Disabled . | . . . Actions | -11 -10 -10 --------- Run | Yrd Mat Min Total 382 | 57 207 118 Wait . | . . . Move 333 | 40 182 111 Hop . | . . . Pick Up 12 | 7 4 1 Fast Attach . | . . . Attach 8 | 6 1 1 Detach . | . . . Swap . | . . . Drop 1 | . . 1 Fire 27 | 4 19 4 Melee . | . . . Ram . | . . . Kick 1 | . 1 . Crush . | . . . Escape Stasis . | . . . Rewire . | . . . Trap . | . . . Miscellaneous . | . . . Route ------- -11/Scrapyard -10/Materials (discovered 2 exits: [*Mat] / [*Min]) -10/Mines History --------- Turn | Location | Event 7 | -11/Scrapyard | Discovered new exit (range 16) 73 | -11/Scrapyard | Entered Materials 242 | -10/Materials | Discovered new exit (range 5) 313 | -10/Materials | Build established: Mutant 348 | -10/Materials | Discovered new exit (range 6) 355 | -10/Materials | Entered Mines 370 | -10/Mines | Assembled infested the area 375 | -10/Mines | Assisted by a Guerilla fighting off Assembled 396 | -10/Mines | Met a Derelict bent on vengeance 404 | -10/Mines | System corruption reached 10% 410 | -10/Mines | Core integrity fell below 50% 417 | -10/Mines | Received a Rocket Launcher from a helpful Derelict 423 | -10/Mines | Core integrity fell below 20% 452 | -10/Mines | Destroyed by S-10 Pest with Light Assault Rifle Last Messages --------------- D-53 Grenadier destroyed. Acquired Rocket Launcher. Dropped Weapon Shielding. as-19220 destroyed. The unstable cave ceiling collapses. Destroyed Asb. Hover Unit. as-28819 destroyed. as-79509 destroyed. as-80206 destroyed. The unstable cave ceiling collapses. as-65991 destroyed. Rocket Launcher destroyed. Destroyed Rocket Launcher. U-05 Engineer lays Concrete. U-05 Engineer destroyed. System corrupted: Substantial component data lost. Acquired 49 matter. The unstable cave ceiling collapses. R-06 Scavenger collects Welding Torch. Map ----- +----------------------------------------------------+ | ???# #??## # ##????????????????????? | | ???# #?## ######???????????????? | | ???# ### # ### ##??????????????? | | ???# # = #?# ###????????????? | | ???# !% #?# ###??????????? | | ???## ! =%] #### ##?????????? | | ????##### !%% ##????????? | | ????????## != #????????? | | ?????????### ## ### ### ## #????????? | | ???????????######?## ## ### ## ##????????? | | ???????????????????# #?# #?# ##?????????? | | ???????????????????## ####### #?? ##??????????? | | ????????????????????#####??# ### ###?????????? | | ???????????????????????????# ## ??? | | ???????????????????????????# ## #######?????????? | | ??????????????????????????## ##??????????????? | | ??????????????????????????# ##?????????????? | | ??????????????????????????# ##????????????? | | ??????????????????????????# ### ?????? | | ??????????????????????????# ?????? | | ?????????????????????????## ????? | | ???????????????????????### ?????? | | ??????????????????????## ##?????? | | ??????????????????????# """ ##??????? | | ????????????# ##### """ ##???????? | | ???????????# @ """ #????????? | | ??????? s #### #????????? | | ??????? s ########??## #???????? | | ???????? ### ??????????????# ????????? | | ??????????# ??????????????????# ## ????????? | | ????????????????????????????????# ##???????????? | | ?????????????????????????????????####????????????? | | ?????????????????????????????????????????????????? | | ?????????????????????????????????????????????????? | | ?????????????????????????????????????????????????? | | ?????????????????????????????????????????????????? | | ?????????????????????????????????????????????????? | | ?????????????????????????????????????????????????? | | ?????????????????????????????????????????????????? | | ?????????????????????????????????????????????????? | | ?????????????????????????????????????????????????? | | ?????????????????????????????????????????????????? | | ?????????????????????????????????????????????????? | | ?????????????????????????????????????????????????? | | ?????????????????????????????????????????????????? | | ?????????????????????????????????????????????????? | | ?????????????????????????????????????????????????? | | ?????????????????????????????????????????????????? | | | | | +----------------------------------------------------+ Best States ------------- Heat Dissipation 25 Energy Generation 10 Energy Capacity 125 Matter Stores 300 Matter Capacity 300 Sight Range 16 Terrain Scan Density 10 Weapon Shielding 33 Evasion (%) 55 Item Schematics ----------------- None Robot Schematics ------------------ None Fabricated ------------ Nothing Alien Tech Used ----------------- None Achievements -------------- None Challenges ------------ None Game ------ Seed TeslaControlDrive Manual? 0 Play Time 00:08:59 Cumulative 16.4 hours Start 2024.08.10 @ 21:43:16 End 2024.08.10 @ 21:50:34 Sessions 1 Manual Loads 0 Difficulty Rogue Special Mode None Game No. 35 Rogue 35 Adventurer 0 Explorer 0 Win Type - Total 0 Types 0/0/0/0/0/0/0/0/0 Lore% 13 Gallery% 23 Achievement% 19 Wizard Run 0 Options --------- Layout 1 ASCII 0 Keyboard 0 Movement Mouse Keybinds 0 Fullscreen 1 Font 16/SmallcapsGlow Map View 50x40 Zoom Use 0% Tactical HUD 0 Map Filters NONE Filters NONE Steam SD RUN: 3978f69d-fb89-41a5-aaf5-ffa536c89f52